bitfinex/quotes_BTCUSD_20241120
["timestamp","ask_amount","ask_price","bid_price","bid_amount"]
[1732100287512,0.194219,93267.0,93261.0,0.09593114]
[1732100287744,0.06647857,93266.0,93260.0,0.1]
[1732100287974,0.03339177,93265.0,93260.0,0.1]
[1732100288201,0.0410908,93266.0,93262.0,0.064334]
[1732100288202,0.06540717,93264.0,93262.0,0.064334]
[1732100288449,0.087,93267.0,93262.0,0.064334]
[1732100288450,0.05202502,93263.0,93262.0,0.064334]
[1732100289173,0.05202206,93263.0,93262.0,0.064334]
[1732100289617,0.05202206,93263.0,93260.0,0.064336]
[1732100289876,0.05202206,93262.0,93260.0,0.064336]
[1732100290092,0.1010714,93266.0,93260.0,0.064336]
[1732100290093,0.05202206,93261.0,93260.0,0.064336]
[1732100294069,0.05203385,93261.0,93260.0,0.064336]
[1732100297666,0.1110714,93266.0,93265.0,0.064332]
[1732100297879,0.15247421,93266.0,93264.0,0.064333]
[1732100298100,0.1,93266.0,93265.0,0.18767281]
[1732100298335,0.15203989,93266.0,93265.0,0.18767281]
[1732100298829,0.15203989,93266.0,93265.0,0.14675418]
[1732100299496,0.16542171,93266.0,93265.0,0.14675418]
[1732100299714,0.15203989,93266.0,93265.0,0.064332]
[1732100299947,0.16542157,93266.0,93265.0,0.14675418]
[1732100300283,0.15203989,93266.0,93265.0,0.14675418]
[1732100300394,0.16542144,93266.0,93265.0,0.14675418]
[1732100300867,0.16542144,93266.0,93265.0,0.064332]
[1732100301096,0.16543646,93266.0,93265.0,0.064332]
[1732100301385,0.16543646,93266.0,93259.0,0.09594185]
[1732100301386,0.02,93260.0,93259.0,0.09594185]
[1732100301615,0.02,93260.0,93257.0,0.09594185]
[1732100301616,0.02,93258.0,93257.0,0.09594185]
[1732100301849,0.20175531,93258.0,93256.0,0.14391277]
[1732100302136,0.07345491,93257.0,93254.0,0.0959933]
[1732100302345,0.03447735,93256.0,93254.0,0.0959933]
[1732100302573,0.07345491,93255.0,93253.0,0.0008558]
[1732100302818,0.07452631,93254.0,93253.0,0.0008558]
[1732100303294,0.08452631,93254.0,93253.0,0.0008558]
[1732100303537,0.21412631,93254.0,93253.0,0.0008558]
[1732100303777,0.21412307,93254.0,93253.0,0.0008558]
[1732100304013,0.21411039,93254.0,93253.0,0.0008558]
[1732100304721,0.21410897,93254.0,93253.0,0.0008558]
[1732100305186,0.21410897,93254.0,93253.0,0.0651968]
[1732100305664,0.1486773,93254.0,93253.0,0.0651968]
[1732100305922,0.1406714,93254.0,93253.0,0.0651968]
[1732100306182,0.21409434,93254.0,93253.0,0.0651968]
[1732100307147,0.2140891,93254.0,93253.0,0.0651968]
[1732100308123,0.21409091,93254.0,93253.0,0.0651968]
[1732100308577,0.21410009,93254.0,93253.0,0.0651968]
[1732100309314,0.21410009,93254.0,93253.0,0.0008558]
[1732100309836,0.22410009,93254.0,93253.0,0.0008558]
[1732100310091,0.33026269,93254.0,93253.0,0.0008558]
[1732100310349,0.48221624,93254.0,93253.0,0.0008558]
[1732100310650,0.45019195,93254.0,93253.0,0.0008558]
[1732100310853,0.45554621,93254.0,93253.0,0.0008558]
[1732100311735,0.4555607,93254.0,93253.0,0.0008558]
[1732100312033,0.49532391,93254.0,93253.0,0.0008558]
[1732100312249,0.49532313,93254.0,93253.0,0.0008558]
[1732100313150,0.45555992,93254.0,93253.0,0.0008558]
[1732100313381,0.34297161,93254.0,93253.0,0.0008558]
[1732100313631,0.18635649,93254.0,93253.0,0.0008558]
[1732100313858,0.20554472,93254.0,93253.0,0.0008558]
[1732100314108,0.17459612,93254.0,93253.0,0.0008558]
[1732100315218,0.10810785,93254.0,93253.0,0.0008558]
[1732100315429,0.1863358,93254.0,93253.0,0.0008558]
[1732100315664,0.17459867,93254.0,93253.0,0.0008558]
[1732100316350,0.29464183,93254.0,93253.0,0.0008558]
[1732100316537,0.29357043,93254.0,93253.0,0.0008558]
[1732100316811,0.18633643,93254.0,93253.0,0.0008558]
[1732100317040,0.18740783,93254.0,93253.0,0.0008558]
[1732100317774,0.44735695,93254.0,93253.0,0.0008558]
[1732100318027,0.44628555,93254.0,93253.0,0.0008558]
[1732100319710,0.44628754,93254.0,93253.0,0.0008558]
[1732100319953,0.45164185,93254.0,93253.0,0.0008558]
[1732100320175,0.46164185,93254.0,93253.0,0.0008558]
[1732100322424,0.37004912,93254.0,93253.0,0.0008558]
[1732100322640,0.46162889,93254.0,93253.0,0.0008558]
[1732100322858,0.48462889,93254.0,93253.0,0.0008558]
[1732100323351,0.43260057,93254.0,93253.0,0.0008558]
[1732100323636,0.45845831,93254.0,93253.0,0.0008558]
[1732100323856,0.48462196,93254.0,93253.0,0.0008558]
[1732100324292,0.48462273,93254.0,93253.0,0.0008558]
[1732100326067,0.4212135,93254.0,93253.0,0.0008558]
[1732100326275,0.48662449,93254.0,93253.0,0.0008558]
[1732100326456,0.49662449,93254.0,93253.0,0.0008558]
[1732100327631,0.49818249,93254.0,93253.0,0.0008558]
[1732100327856,0.49618249,93254.0,93253.0,0.0008558]
[1732100329171,0.147236,93252.0,93251.0,0.0004]
[1732100329370,0.50446999,93252.0,93251.0,0.0004]
[1732100329577,0.4379876,93252.0,93251.0,0.0004]
[1732100329804,0.46656513,93252.0,93251.0,0.0004]
[1732100330026,0.50340284,93252.0,93251.0,0.0004]
[1732100330248,0.50875782,93252.0,93251.0,0.0004]
[1732100330472,0.49808572,93252.0,93251.0,0.0004]
[1732100330671,0.48259436,93252.0,93251.0,0.0004]
[1732100330889,0.50876413,93252.0,93251.0,0.0004]
[1732100331093,0.47192012,93252.0,93251.0,0.0004]
[1732100331322,0.49808823,93252.0,93251.0,0.0004]
[1732100333144,0.43267422,93252.0,93251.0,0.0004]
[1732100333353,0.49810708,93252.0,93251.0,0.0004]
[1732100333981,0.50010708,93252.0,93251.0,0.0004]
[1732100334462,0.60010708,93252.0,93251.0,0.0004]
[1732100334666,0.59810708,93252.0,93251.0,0.0004]
[1732100335327,0.59811095,93252.0,93251.0,0.0004]
[1732100336946,0.50650611,93252.0,93251.0,0.0004]
[1732100337095,0.53267916,93252.0,93251.0,0.0004]
[1732100337308,0.59811194,93252.0,93251.0,0.0004]
[1732100338386,0.59811194,93252.0,93251.0,0.0012559]
[1732100339429,0.59275695,93252.0,93251.0,0.0012559]
[1732100340412,0.57459333,93252.0,93251.0,0.0012559]
[1732100340611,0.59276347,93252.0,93251.0,0.0012559]
[1732100340873,0.5927857,93252.0,93251.0,0.0012559]
[1732100341029,0.59278813,93252.0,93251.0,0.0012559]
[1732100341425,0.61897481,93252.0,93251.0,0.0012559]
[1732100341627,0.62097481,93252.0,93251.0,0.0012559]
[1732100341825,0.61897481,93252.0,93251.0,0.0012559]
[1732100342441,0.62097481,93252.0,93251.0,0.0012559]
[1732100342708,0.61897481,93252.0,93251.0,0.0012559]
[1732100342878,0.62097481,93252.0,93251.0,0.0012559]
[1732100344281,0.296145,93244.0,93243.0,0.0008561]
[1732100344510,0.49490181,93244.0,93243.0,0.0008561]
[1732100344706,0.49491107,93244.0,93243.0,0.0008561]
[1732100346368,0.46191107,93244.0,93243.0,0.0008561]
[1732100346562,0.43572439,93244.0,93243.0,0.0008561]
[1732100346887,0.46191254,93244.0,93243.0,0.0008561]
[1732100348945,0.47260049,93244.0,93243.0,0.0008561]
[1732100349313,0.42760049,93244.0,93243.0,0.0008561]
[1732100349733,0.35144827,93244.0,93243.0,0.0008561]
[1732100349933,0.41695075,93244.0,93243.0,0.0008561]
[1732100350380,0.45639081,93244.0,93243.0,0.0008561]
[1732100351223,0.46708098,93244.0,93243.0,0.0008561]
[1732100351701,0.45708098,93244.0,93243.0,0.0008561]
[1732100352974,0.44639081,93244.0,93243.0,0.0008561]
[1732100353206,0.36752047,93244.0,93243.0,0.0008561]
[1732100353411,0.45713856,93244.0,93243.0,0.0008561]
[1732100353820,0.44644264,93244.0,93243.0,0.0008561]
[1732100354263,0.45713885,93244.0,93243.0,0.0008561]
[1732100355272,0.44644264,93244.0,93243.0,0.0008561]
[1732100356801,0.3809123,93244.0,93243.0,0.0008561]
[1732100356995,0.40019282,93244.0,93243.0,0.0008561]
[1732100357210,0.44648172,93244.0,93243.0,0.0008561]
[1732100357848,0.36558172,93244.0,93243.0,0.0008561]
[1732100359205,0.30002347,93244.0,93243.0,0.0008561]
[1732100359405,0.36558645,93244.0,93243.0,0.0008561]
[1732100359631,0.117247,93242.0,93241.0,0.0008561]
[1732100359807,0.31721979,93242.0,93241.0,0.0008561]
[1732100360017,0.31614839,93242.0,93241.0,0.0008561]
[1732100360453,0.3161487,93242.0,93241.0,0.0008561]
[1732100360676,0.25058707,93242.0,93241.0,0.0008561]
[1732100360897,0.27065488,93242.0,93241.0,0.0008561]
[1732100361059,0.31615129,93242.0,93241.0,0.0008561]
[1732100361488,0.32685426,93242.0,93241.0,0.0008561]
[1732100361857,0.31615129,93242.0,93241.0,0.0008561]
[1732100362460,0.32685463,93242.0,93241.0,0.0008561]
[1732100362658,0.32685473,93242.0,93241.0,0.0008561]
[1732100362915,0.31615129,93242.0,93241.0,0.0008561]
[1732100363847,0.01,93242.0,93241.0,0.1134051]
[1732100364113,0.05345456,93242.0,93241.0,0.1898051]
[1732100364325,0.11178851,93242.0,93241.0,0.1898051]
[1732100364539,0.10643385,93242.0,93241.0,0.1898051]
[1732100364746,0.08643385,93242.0,93241.0,0.1898051]
[1732100364947,0.12853439,93242.0,93241.0,0.2859434]
[1732100365082,0.12853439,93242.0,93241.0,0.1898051]
[1732100365083,0.08643385,93242.0,93241.0,0.1898051]
[1732100365295,0.07359039,93242.0,93241.0,0.33401712]
[1732100365529,0.08359039,93242.0,93241.0,0.1898051]
[1732100366176,0.07359039,93242.0,93241.0,0.1898051]
[1732100366377,0.07359039,93242.0,93241.0,0.33401712]
[1732100366595,0.07359039,93242.0,93241.0,0.1898051]
[1732100367242,0.07353959,93242.0,93241.0,0.33401584]
[1732100367681,0.02,93246.0,93245.0,0.064346]
[1732100367902,0.08550014,93246.0,93245.0,0.064346]
[1732100368101,0.10634603,93246.0,93245.0,0.064346]
[1732100368367,0.09351779,93246.0,93245.0,0.064346]
[1732100368565,0.09634337,93246.0,93245.0,0.064346]
[1732100368767,0.08351779,93246.0,93245.0,0.064346]
[1732100368976,0.08350542,93246.0,93245.0,0.064346]
[1732100369979,0.07350542,93246.0,93245.0,0.064346]
[1732100371125,0.08350542,93246.0,93245.0,0.064346]
[1732100371351,0.06547391,93246.0,93245.0,0.064346]
[1732100371561,0.06547391,93246.0,93244.0,0.08250053]
[1732100371562,0.04543648,93246.0,93244.0,0.08250053]
[1732100371804,0.0017122,93251.0,93250.0,0.064343]
[1732100372001,0.06581193,93251.0,93250.0,0.064343]
[1732100372215,0.08717814,93251.0,93250.0,0.064343]
[1732100372494,0.09519046,93251.0,93250.0,0.064343]
[1732100372698,0.07519046,93251.0,93250.0,0.064343]
[1732100372933,0.09519046,93251.0,93250.0,0.064343]
[1732100373141,0.08519046,93251.0,93250.0,0.064343]
[1732100373357,0.09519046,93251.0,93250.0,0.064343]
[1732100375056,0.08717814,93251.0,93250.0,0.064343]
[1732100375257,0.09518683,93251.0,93250.0,0.064343]
[1732100378348,0.01,93249.0,93244.0,0.08250053]
[1732100378555,0.01,93249.0,93248.0,0.064344]
[1732100378905,0.07005255,93249.0,93248.0,0.064344]
[1732100380852,0.07005255,93249.0,93246.0,0.064345]
[1732100381013,0.06005255,93248.0,93243.0,0.0008561]
[1732100381214,0.117245,93244.0,93243.0,0.0008561]
[1732100381419,0.28548471,93244.0,93243.0,0.0008561]
[1732100381652,0.29779972,93244.0,93243.0,0.0008561]
[1732100381880,0.31061293,93244.0,93243.0,0.0008561]
[1732100382092,0.31261381,93244.0,93243.0,0.0008561]
[1732100382314,0.32062201,93244.0,93243.0,0.0008561]
[1732100382469,0.29980606,93244.0,93243.0,0.0008561]
[1732100382673,0.01,93239.0,93235.0,0.0748761]
[1732100382876,0.28889375,93238.0,93235.0,0.0748761]
[1732100383084,0.07345523,93237.0,93235.0,0.0748761]
[1732100383279,0.07452663,93236.0,93235.0,0.0748761]
[1732100383885,0.19178063,93236.0,93235.0,0.0748761]
[1732100384319,0.01,93232.0,93231.0,0.0012561]
[1732100384482,0.07007221,93232.0,93231.0,0.0012561]
[1732100385722,0.01800989,93232.0,93231.0,0.0012561]
[1732100385887,0.07007417,93232.0,93231.0,0.0012561]
[1732100386483,0.07007504,93232.0,93231.0,0.0012561]
[1732100388275,0.18733404,93232.0,93231.0,0.0012561]
[1732100388519,0.24722162,93232.0,93231.0,0.0012561]
[1732100389173,0.173759,93232.0,93231.0,0.0012561]
[1732100389378,0.19271311,93232.0,93231.0,0.0012561]
[1732100389580,0.20072333,93232.0,93231.0,0.0012561]
[1732100391190,0.18733565,93232.0,93231.0,0.0012561]
[1732100391607,0.20072318,93232.0,93231.0,0.0012561]
[1732100392401,0.19271296,93232.0,93231.0,0.0012561]
[1732100392602,0.20072354,93232.0,93231.0,0.0012561]
[1732100394024,0.30783866,93232.0,93231.0,0.0012561]
[1732100394275,0.3526946,93232.0,93231.0,0.0012561]
[1732100394612,0.32065464,93232.0,93231.0,0.0012561]
[1732100395262,0.10628052,93232.0,93231.0,0.0012561]
[1732100395477,0.09346454,93232.0,93231.0,0.0012561]
[1732100396135,0.09345626,93232.0,93231.0,0.0012561]
[1732100397600,0.08345626,93232.0,93231.0,0.0012561]
[1732100398005,0.08345626,93232.0,93231.0,0.0548861]
[1732100398663,0.07345626,93232.0,93231.0,0.13738663]
[1732100398876,0.05205803,93232.0,93231.0,0.18718663]
[1732100399327,0.05205803,93232.0,93231.0,0.1046861]
[1732100399490,0.01,93239.0,93238.0,0.053626]
[1732100399718,0.0233867,93239.0,93238.0,0.13612653]
[1732100399975,0.06342595,93239.0,93238.0,0.13612653]
[1732100400178,0.08344558,93239.0,93238.0,0.13612653]
[1732100400706,0.09344558,93239.0,93238.0,0.13612653]
[1732100400911,0.08344558,93239.0,93238.0,0.13612653]
[1732100401352,0.07543773,93239.0,93238.0,0.13612653]
[1732100401556,0.08344501,93239.0,93238.0,0.13612653]
[1732100401763,0.09344501,93239.0,93238.0,0.13612653]
[1732100401964,0.07543548,93239.0,93238.0,0.053626]
[1732100402166,0.09344307,93239.0,93238.0,0.053626]
[1732100402504,0.08344307,93239.0,93238.0,0.053626]
[1732100403339,0.07543548,93239.0,93238.0,0.053626]
[1732100403586,0.09344453,93239.0,93238.0,0.053626]
[1732100405371,0.02,93239.0,93238.0,0.053626]
[1732100405604,0.08346532,93239.0,93238.0,0.053626]
[1732100405772,0.09346532,93239.0,93238.0,0.053626]
[1732100406576,0.08346532,93239.0,93238.0,0.053626]
[1732100406781,0.09346532,93239.0,93236.0,0.08250053]
[1732100406991,0.07346532,93238.0,93236.0,0.08250053]
[1732100407148,0.07346746,93237.0,93236.0,0.08250053]
[1732100407554,0.06545476,93237.0,93236.0,0.08250053]
[1732100407780,0.07346762,93237.0,93232.0,0.14404105]
[1732100407986,0.06545476,93236.0,93232.0,0.14404105]
[1732100408195,0.06545471,93235.0,93232.0,0.14404105]
[1732100408363,0.06545471,93235.0,93231.0,0.0510561]
[1732100408364,0.06545489,93234.0,93231.0,0.19509715]
[1732100408596,0.05206865,93233.0,93231.0,0.19509715]
[1732100408796,0.05206865,93232.0,93231.0,0.19509715]
[1732100409029,0.05206865,93232.0,93231.0,0.48341189]
[1732100409241,0.05206865,93232.0,93231.0,0.29135716]
[1732100410480,0.05206865,93232.0,93231.0,0.1263561]
[1732100410688,0.05206865,93232.0,93231.0,0.53142558]
[1732100411061,0.05206865,93232.0,93231.0,0.29135716]
[1732100411641,0.0200264,93232.0,93231.0,0.29135716]
[1732100411877,0.0200264,93232.0,93231.0,0.32215072]
[1732100412078,0.0017124,93241.0,93231.0,0.48666637]
[1732100412279,0.0017124,93241.0,93240.0,0.08250053]
[1732100412569,0.0017124,93241.0,93240.0,0.23718174]
[1732100412721,0.02174309,93241.0,93240.0,0.52527586]
[1732100412922,0.0017124,93241.0,93240.0,0.31968227]
[1732100413322,0.0017124,93241.0,93240.0,0.60759123]
[1732100413528,0.0017124,93241.0,93240.0,0.23718174]
[1732100414308,0.0017124,93241.0,93240.0,0.23718868]
[1732100414532,0.0017124,93241.0,93240.0,0.20640053]
[1732100415126,0.0017124,93241.0,93240.0,0.08250053]
[1732100415325,0.02172474,93241.0,93240.0,0.08250053]
[1732100415526,0.05374567,93241.0,93240.0,0.08250053]
[1732100416149,0.05374567,93241.0,93240.0,0.32250744]
[1732100416150,0.02172474,93241.0,93240.0,0.32250744]
[1732100416316,0.02172474,93241.0,93240.0,0.37050744]
[1732100416515,0.0017124,93241.0,93240.0,0.13050053]
[1732100416816,0.0017124,93241.0,93240.0,0.29247335]
[1732100417021,0.0017124,93241.0,93240.0,0.29140106]
[1732100417453,0.0017124,93241.0,93240.0,0.20890053]
[1732100417667,0.0017124,93241.0,93240.0,0.29247331]
[1732100417805,0.0017124,93241.0,93240.0,0.20890053]
[1732100418005,0.0017124,93241.0,93240.0,0.20997278]
[1732100419062,0.02171534,93241.0,93240.0,0.20997278]
[1732100419275,0.0017124,93241.0,93240.0,0.20890053]
[1732100419493,0.0017124,93241.0,93240.0,0.44990804]
[1732100419707,0.0017124,93241.0,93240.0,0.20890053]
[1732100419930,0.0017124,93241.0,93240.0,0.44990804]
[1732100420167,0.0017124,93241.0,93240.0,0.44883578]
[1732100420370,0.0017124,93241.0,93240.0,0.20890053]
[1732100420573,0.0017124,93241.0,93240.0,0.20997279]
[1732100421196,0.0017124,93241.0,93240.0,0.20890053]
[1732100422560,0.0017124,93241.0,93240.0,0.20997278]
[1732100423371,0.0017124,93241.0,93240.0,0.44981113]
[1732100423581,0.0017124,93241.0,93240.0,0.44873888]
[1732100424426,0.0017124,93241.0,93240.0,0.20890053]
[1732100424636,0.0017124,93241.0,93240.0,0.20997278]
[1732100424838,0.0017124,93241.0,93240.0,0.39958843]
[1732100425072,0.0017124,93241.0,93240.0,0.61377152]
[1732100425225,0.0017124,93241.0,93240.0,0.95664222]
[1732100425427,0.0017124,93241.0,93240.0,0.95582145]
[1732100426228,0.0017124,93241.0,93240.0,0.36426993]
[1732100426465,0.0017124,93241.0,93240.0,0.81677868]
[1732100427043,0.0017124,93241.0,93240.0,0.65177762]
[1732100427223,0.0017124,93241.0,93240.0,0.81677868]
[1732100427457,0.0017124,93241.0,93240.0,0.52927099]
[1732100428527,0.0017124,93241.0,93240.0,0.53127099]
[1732100428726,0.0017124,93241.0,93240.0,0.52927099]
[1732100429535,0.0017124,93241.0,93240.0,0.49851618]
[1732100429863,0.0017124,93241.0,93240.0,0.52926349]
[1732100430033,0.0017124,93241.0,93240.0,0.81874974]
[1732100430234,0.0017124,93241.0,93240.0,0.52926349]
[1732100431133,0.0017124,93241.0,93240.0,0.53126349]
[1732100431254,0.0017124,93241.0,93240.0,0.52926349]
[1732100431672,0.0017124,93241.0,93240.0,0.53126349]
[1732100432111,0.0017124,93241.0,93240.0,0.36426243]
[1732100432342,0.0017124,93241.0,93240.0,0.52926349]
[1732100432563,0.0017124,93241.0,93240.0,0.53126349]
[1732100433454,0.0017124,93241.0,93240.0,0.36797403]
[1732100433662,0.0017124,93241.0,93240.0,0.36597403]
[1732100433869,0.0017124,93241.0,93240.0,0.03245891]
[1732100434092,0.0017124,93241.0,93240.0,0.11495944]
[1732100435361,0.0017124,93241.0,93240.0,0.08421213]
[1732100435605,0.0813124,93241.0,93240.0,0.22797991]
[1732100435817,0.0813124,93241.0,93240.0,0.08421213]
[1732100436374,0.10132184,93241.0,93240.0,0.08421213]
[1732100436785,0.10132184,93241.0,93240.0,0.12516168]
[1732100437832,0.10132184,93241.0,93240.0,0.0017116]
[1732100438029,0.10132184,93241.0,93240.0,0.12516168]
[1732100440150,0.10133559,93241.0,93240.0,0.12516168]
[1732100441101,0.10134044,93241.0,93240.0,0.12516168]
[1732100441300,0.13339234,93241.0,93240.0,0.12516168]
[1732100441504,0.13339234,93241.0,93240.0,0.26896546]
[1732100442324,0.13339234,93241.0,93240.0,0.2690958]
[1732100442525,0.13339234,93241.0,93240.0,0.12516168]
[1732100444816,0.26444066,93241.0,93240.0,0.0017116]
[1732100445026,0.3619204,93241.0,93240.0,0.0017116]
[1732100445237,0.32988042,93241.0,93240.0,0.0017116]
[1732100445439,0.3619047,93241.0,93240.0,0.0017116]
[1732100446273,0.32988042,93241.0,93240.0,0.0017116]
[1732100447149,0.34268545,93241.0,93240.0,0.0017116]
[1732100447356,0.35268545,93241.0,93240.0,0.0017116]
[1732100448287,0.33187162,93241.0,93240.0,0.0017116]
[1732100448487,0.35267181,93241.0,93240.0,0.0017116]
[1732100451769,0.35255017,93241.0,93240.0,0.0017116]
[1732100452205,0.32975005,93241.0,93240.0,0.0017116]
[1732100452376,0.36170518,93241.0,93240.0,0.0017116]
[1732100454546,0.32975005,93241.0,93240.0,0.0017116]
[1732100454912,0.36170518,93241.0,93240.0,0.0017116]
[1732100455250,0.36167881,93241.0,93240.0,0.0017116]
[1732100455473,0.32973061,93241.0,93240.0,0.0017116]
[1732100457938,0.32971878,93241.0,93240.0,0.0017116]
[1732100458752,0.32972075,93241.0,93240.0,0.0017116]
[1732100458947,0.32973981,93241.0,93240.0,0.0017116]
[1732100459336,0.34252518,93241.0,93240.0,0.0017116]
[1732100460083,0.32973981,93241.0,93240.0,0.0017116]
[1732100460280,0.34252898,93241.0,93240.0,0.0017116]
[1732100460815,0.34252921,93241.0,93240.0,0.0017116]
[1732100461014,0.32973981,93241.0,93240.0,0.0017116]
[1732100461493,0.34252895,93241.0,93240.0,0.0017116]
[1732100462557,0.36252895,93241.0,93240.0,0.0017116]
[1732100462781,0.45042021,93241.0,93240.0,0.0017116]
[1732100462994,0.03,93232.0,93231.0,0.0012561]
[1732100463204,0.35058795,93232.0,93231.0,0.0012561]
[1732100463441,0.34951655,93232.0,93231.0,0.0012561]
[1732100464615,0.34952875,93232.0,93231.0,0.0012561]
[1732100469370,0.35488441,93232.0,93231.0,0.0012561]
[1732100469576,0.34952875,93232.0,93231.0,0.0012561]
[1732100469992,0.35488439,93232.0,93231.0,0.0012561]
[1732100470609,0.35488437,93232.0,93231.0,0.0012561]
[1732100471463,0.3287372,93232.0,93231.0,0.0012561]
[1732100471679,0.36499757,93232.0,93231.0,0.0012561]
[1732100474778,0.3650278,93232.0,93231.0,0.0012561]
[1732100475225,0.29958156,93232.0,93231.0,0.0012561]
[1732100475430,0.38803019,93232.0,93231.0,0.0012561]
[1732100476278,0.04,93228.0,93227.0,0.0008549]
[1732100476451,0.54661212,93228.0,93227.0,0.0008549]
[1732100476655,0.61098935,93228.0,93227.0,0.0008549]
[1732100477967,0.02,93212.0,93211.0,0.0004]
[1732100478166,0.27469726,93212.0,93211.0,0.0004]
[1732100478392,0.33907449,93212.0,93211.0,0.0004]
[1732100479385,0.21337449,93212.0,93211.0,0.0004]
[1732100479585,0.20056788,93212.0,93211.0,0.12395916]
[1732100480642,0.20163928,93212.0,93211.0,0.12395916]
[1732100481292,0.20163928,93212.0,93211.0,0.12481506]
[1732100482880,0.16157987,93212.0,93211.0,0.12481506]
[1732100483028,0.20051601,93212.0,93211.0,0.12481506]
[1732100483431,0.07340089,93212.0,93211.0,0.12481506]
[1732100483635,0.07340089,93212.0,93211.0,0.33157422]
[1732100483838,0.07340089,93212.0,93211.0,0.33357422]
[1732100484037,0.06539938,93212.0,93211.0,0.33157422]
[1732100484250,0.06539938,93212.0,93211.0,0.43157422]
[1732100484492,0.06539938,93212.0,93211.0,0.1844559]
[1732100484618,0.06539938,93212.0,93211.0,0.30801506]
[1732100484826,0.0520098,93212.0,93211.0,0.30801506]
[1732100485026,0.01,93222.0,93211.0,0.30801506]
[1732100485285,0.01,93222.0,93221.0,0.12355916]
[1732100485482,0.0433967,93222.0,93221.0,0.12355916]
[1732100485654,0.08341357,93222.0,93221.0,0.12355916]
[1732100486605,0.07341357,93222.0,93221.0,0.12355916]
[1732100486810,0.07341357,93222.0,93221.0,0.17225916]
[1732100487142,0.0654102,93222.0,93221.0,0.31600256]
[1732100487322,0.07341274,93222.0,93221.0,0.39110256]
[1732100487586,0.0654102,93222.0,93221.0,0.24735916]
[1732100488105,0.0654102,93222.0,93221.0,0.28715737]
[1732100488420,0.05202194,93222.0,93221.0,0.28715737]
[1732100488854,0.05202194,93222.0,93221.0,0.5267297]
[1732100489029,0.05202194,93222.0,93221.0,0.28715737]
[1732100489254,0.0017118,93232.0,93221.0,0.38715737]
[1732100489451,0.02000716,93222.0,93221.0,0.26359821]
[1732100489757,0.0017118,93232.0,93222.0,0.1]
[1732100490090,0.06540538,93231.0,93229.0,0.14415459]
[1732100490317,0.052019,93230.0,93229.0,0.14415459]
[1732100490443,0.052019,93230.0,93229.0,0.26771375]
[1732100490885,0.01,93228.0,93226.0,0.14415459]
[1732100491092,0.0834072,93227.0,93222.0,0.12355916]
[1732100491236,0.0017118,93232.0,93226.0,0.12355916]
[1732100491468,0.0017118,93232.0,93228.0,0.14416655]
[1732100491469,0.05200122,93231.0,93228.0,0.14416655]
[1732100491681,0.05200122,93230.0,93227.0,0.26886655]
[1732100491898,0.0017118,93232.0,93227.0,0.26886655]
[1732100491899,0.05200122,93229.0,93227.0,0.26886655]
[1732100492103,0.0017118,93232.0,93224.0,0.1]
[1732100492104,0.05200122,93228.0,93224.0,0.1]
[1732100492310,0.0017118,93232.0,93227.0,0.12355916]
[1732100492538,0.05199691,93231.0,93227.0,0.12355916]
[1732100492775,0.05199691,93230.0,93227.0,0.12355916]
[1732100493027,0.01999881,93229.0,93227.0,0.12355916]
[1732100493256,0.01999881,93228.0,93227.0,0.12355916]
[1732100494014,0.01999881,93228.0,93227.0,0.22555916]
[1732100494253,0.0017118,93232.0,93229.0,0.002]
[1732100494487,0.01999197,93231.0,93230.0,0.00107241]
[1732100494727,0.0017118,93232.0,93230.0,0.12355916]
[1732100494991,0.0017118,93232.0,93231.0,0.00107241]
[1732100495171,0.0017118,93232.0,93231.0,0.48964305]
[1732100495397,0.0017118,93232.0,93231.0,0.2209]
[1732100495655,0.0017118,93232.0,93231.0,0.36500722]
[1732100496124,0.02169087,93232.0,93231.0,0.2209]
[1732100496330,0.0017118,93232.0,93231.0,0.3649871]
[1732100496533,0.0017118,93232.0,93231.0,0.2209]
[1732100499194,0.0017118,93232.0,93231.0,0.36491345]
[1732100499391,0.0017118,93232.0,93231.0,0.46117759]
[1732100499623,0.0017118,93232.0,93231.0,0.2209]
[1732100499878,0.0017118,93232.0,93231.0,0.1]
[1732100500087,0.0017118,93232.0,93230.0,0.1]
[1732100500242,0.0017118,93232.0,93229.0,0.1]
[1732100500488,0.0017118,93232.0,93228.0,0.1]
[1732100501147,0.0017118,93232.0,93227.0,0.12441506]
[1732100501353,0.01,93230.0,93227.0,0.12441506]
[1732100501773,0.01,93230.0,93227.0,0.0008559]
[1732100501974,0.01,93228.0,93227.0,0.0008559]
[1732100502183,0.02995341,93228.0,93227.0,0.0008559]
[1732100502381,0.01,93228.0,93227.0,0.0008559]
[1732100502607,0.02995314,93228.0,93227.0,0.0008559]
[1732100506020,0.01,93228.0,93227.0,0.0008559]
[1732100506223,0.02840888,93228.0,93227.0,0.0008559]
[1732100509411,0.00845159,93228.0,93227.0,0.0008559]
[1732100509612,0.02842643,93228.0,93227.0,0.0008559]
[1732100510196,0.06039335,93228.0,93227.0,0.0008559]
[1732100510936,0.02842643,93228.0,93227.0,0.0008559]
[1732100511182,0.06040154,93228.0,93227.0,0.0008559]
[1732100513343,0.32790327,93228.0,93227.0,0.0008559]
[1732100513696,0.34070033,93228.0,93227.0,0.0008559]
[1732100514587,0.32790327,93228.0,93227.0,0.0008559]
[1732100514725,0.34069931,93228.0,93227.0,0.0008559]
[1732100516789,0.32793225,93228.0,93227.0,0.0008559]
[1732100517450,0.34072733,93228.0,93227.0,0.0008559]
[1732100517990,0.32793225,93228.0,93227.0,0.0008559]
[1732100518193,0.34072633,93228.0,93227.0,0.0008559]
[1732100518398,0.35072633,93228.0,93227.0,0.0008559]
[1732100519821,0.36072633,93228.0,93227.0,0.0008559]
[1732100520485,0.09615159,93212.0,93211.0,0.0012559]
[1732100520668,0.23771902,93212.0,93211.0,0.0012559]
[1732100520886,0.28942633,93212.0,93211.0,0.0012559]
[1732100521272,0.32138719,93212.0,93211.0,0.0012559]
[1732100521468,0.27663225,93212.0,93211.0,0.0012559]
[1732100522816,0.32603225,93212.0,93211.0,0.0012559]
[1732100525553,0.33400853,93212.0,93211.0,0.0012559]
[1732100525760,0.32603225,93212.0,93211.0,0.0012559]
[1732100526095,0.33400842,93212.0,93211.0,0.0012559]
[1732100526377,0.3260115,93212.0,93211.0,0.0012559]
[1732100527822,0.3360115,93212.0,93211.0,0.0012559]
[1732100530667,0.3209195,93212.0,93211.0,0.0012559]
[1732100532628,0.31281196,93212.0,93211.0,0.0012559]
[1732100532831,0.32078822,93212.0,93211.0,0.0012559]
[1732100533395,0.43355015,93212.0,93211.0,0.0012559]
[1732100533593,0.47545522,93212.0,93211.0,0.0012559]
[1732100533795,0.44355015,93212.0,93211.0,0.0012559]
[1732100534183,0.44890705,93212.0,93211.0,0.0012559]
[1732100536476,0.38366331,93212.0,93211.0,0.0012559]
[1732100536679,0.44888422,93212.0,93211.0,0.0012559]
[1732100539866,0.15605159,93193.0,93192.0,0.0017126]
[1732100540124,0.33743261,93193.0,93192.0,0.0017126]
[1732100540360,0.33636121,93193.0,93192.0,0.0017126]